[Event "28th Tamil Nadu IM Norm 2024"]
[Site "Tamil Nadu"]
[Date "2024.09.18"]
[Round "5.2"]
[White "Dinesh Rajan M"]
[Black "Aakash G"]
[Result "0-1"]
[ECO "B50"]
[WhiteElo "2258"]
[BlackElo "2279"]
[Annotator "TA"]
[PlyCount "126"]
[EventDate "2024.09.15"]
[EventCountry "IND"]
[SourceTitle "playchess.com"]
[Source "ChessBase"]
[SourceQuality "1"]
[TimeControl "5400+30"]

{[%evp 40,126,264,255,293,250,277,242,250,227,250,236,225,225,239,237,355,288,379,377,606,550,533,487,467,450,463,453,425,203,202,162,226,217,290,91,85,75,75,49,52,60,69,47,96,-487,-484,-464,-469,-522,-469,-381,-536,-536,-467,-409,-368,-696,-650,-587,-580,-998,-789,-897,-888,-871,-862,-853,-818,-828,-764,-657,-641,-703,-658,-989,-989,-969,-975,-893,-773,-29994,-29995,-29995,-29996,-29996,-29997,-29998,-29999]} 1. e4 {[%emt 0:00:07]} c5 {[%emt 0:00:18]} 2. Nf3 {[%emt 0:00:42]} d6 {[%emt 0:00:08]} 3. c3 {[%emt 0:00:34]} Nf6 {[%emt 0:00:11]} 4. Be2 {[%emt 0:00:36]} Nc6 {[%emt 0:00:35]} 5. d4 {[%emt 0:01:58]} cxd4 {[%emt 0:04:39]} 6. cxd4 {[%emt 0:00:18]} d5 {[%emt 0:04:31]} 7. e5 {[%emt 0:02:05]} Ne4 {[%emt 0:00:32]} 8. O-O {[%emt 0:02:02]} Bg4 {[%emt 0:01:11] B50: Sicilian: 2...d6, Miscellaneous.} 9. Kh1 {[%emt 0:02:31]} f6 $146 {[%emt 0:01:26]} ({Predecessor:} 9... e6 10. Ng1 Bxe2 11. Nxe2 f6 12. f3 Ng5 13. Nbc3 fxe5 14. f4 exd4 15. Nxd4 Nxd4 16. Qxd4 {½-½ Becerra Rivero,J (2447)-Sinha,S (2327) Charlotte Super op 2023 (8)}) 10. Ng1 {[%emt 0:05:11]} Bxe2 {[%emt 0:00:24]} 11. Nxe2 {[%emt 0:00:02]} fxe5 {[%emt 0:01:09]} 12. f3 {[%emt 0:07:44]} Nf6 {[%emt 0:01:13]} 13. dxe5 {[%emt 0:01:46]} Nxe5 {[%emt 0:00:13]} 14. Nd4 {[%emt 0:04:06]} Rc8 {[%emt 0:04:42]} 15. Nc3 {[%emt 0:24:01]} Nc4 {[%emt 0:08:05]} 16. Ne6 {[%emt 0:03:41]} Qd7 {[%emt 0:04:51]} 17. Re1 {[%emt 0:00:27]} Kf7 {[%emt 0:02:07]} 18. b3 {[%emt 0:05:44]} Nd6 {[%emt 0:11:14]} 19. Bb2 {[%emt 0:07:49]} Nb5 {[%emt 0:06:38]} 20. Nxb5 {[%emt 0:10:39]} Qxb5 {[%emt 0:00:10]} 21. Qd4 {[%emt 0:00:50]} Qb6 {[%emt 0:09:02]} 22. Qe5 {[%emt 0:01:22]} h6 {[%emt 0:03:00]} 23. Rad1 {[%emt 0:05:21]} Qd6 {[%emt 0:01:14]} 24. Qe3 {[%emt 0:03:50]} Rc6 {[%emt 0:01:33]} 25. Qxa7 {[%emt 0:01:36]} Qd7 {[%emt 0:02:21]} 26. Nc5 {[%emt 0:01:46]} Qc8 {[%emt 0:01:22]} 27. Rc1 {[%emt 0:00:44]} (27. Nxb7 $2 Rc7 $17) 27... Rc7 {[%emt 0:02:08]} (27... e5 $142 28. Nd3 (28. Nxb7 Kg6 $18) (28. Qxb7+ Qxb7 29. Nxb7 Rxc1 $16) 28... Bd6 29. Rxc6 (29. Nxe5+ Bxe5 30. Rxc6 Qxc6 $18) (29. Bxe5 Bb8 $18) 29... Qxc6 30. Bxe5 (30. Nxe5+ Bxe5 31. Rxe5 Qc2 $18) 30... Re8 31. Bxd6 Rxe1+ 32. Nxe1 Qxd6 33. Qxb7+ Kg8 34. Qc8+ Kh7) 28. Qb6 {[%emt 0:01:31]} d4 {[%emt 0:01:55]} 29. Nd3 {[%emt 0:00:36]} (29. Bxd4 Nd5 30. Qb5 e6 $14) 29... Nd5 $2 {[%emt 0:01:32]} (29... Rxc1 30. Rxc1 Qe6 31. Qxb7 (31. Bxd4 Qxb6 32. Bxb6 g5 $18) (31. Qxd4 Kg8 $18) 31... Qf5) 30. Ne5+ {[%emt 0:00:41]} Kg8 {[%emt 0:00:06]} 31. Qg6 {[%emt 0:00:46]} Nc3 {[%emt 0:00:41]} 32. Qf7+ {[%emt 0:01:20]} Kh7 {[%emt 0:00:08]} 33. Bxc3 {[%emt 0:00:39]} dxc3 {[%emt 0:00:34]} 34. Ng4 {[%emt 0:00:54]} (34. Qg6+ $142 Kg8 35. h3 (35. Qf7+ Kh7 $18)) 34... Rc6 $18 {[%emt 0:01:11]} 35. Rc2 {[%emt 0:00:16]} Qd8 {[%emt 0:01:19]} (35... b5 {was called for.} 36. b4 e5 (36... Rg8 37. g3 $18)) 36. Ne5 $18 {[%emt 0:00:45]} Rd6 {[%emt 0:01:46]} 37. Qf5+ $2 {[%emt 0:00:46]} (37. Rxc3 $18 {and White stays clearly on top. And now h4 would win.} Rg8 38. h4) 37... g6 $16 {[%emt 0:00:14]} 38. Qe4 {[%emt 0:00:05]} Re6 {[%emt 0:00:24]} 39. Rxc3 {[%emt 0:00:32]} (39. Qc4 $2 Rxe5 40. Qxc3 (40. Qf7+ $2 Bg7 $19) 40... Bg7 (40... Rxe1+ $2 41. Qxe1 Bg7 42. h4 $19) 41. Rxe5 Bxe5 $19) 39... Bg7 {[%emt 0:00:24]} 40. f4 {[%emt 0:00:19]} Rf8 $1 {[%emt 0:00:13]} 41. h3 {[%emt 0:01:33]} (41. Qxb7 $2 Rxf4 42. Rcc1 Rxe5 $19) 41... Qa5 {[%emt 0:00:02]} (41... Qd2 $14 {deserves consideration.} 42. Rce3 Bxe5 43. fxe5 Qxa2) 42. Rf3 $2 {[%emt 0:01:36][%mdl 8192] [#]} (42. Rce3 $16 {and life is bright.}) 42... Rxf4 $1 $19 {[%emt 0:00:34]} (42... Qxa2 43. Qxb7 Qd2 44. Ref1 $15) (42... Bxe5 43. Re2 $16) 43. Rxf4 {[%emt 0:01:26]} Rxe5 {[%emt 0:00:07]} (43... Bxe5 $2 44. Rf3 $18) 44. b4 {[%emt 0:00:35]} Qc7 {[%emt 0:00:43]} (44... Qxa2 45. Qb1 Rxe1+ 46. Qxe1 $16) 45. Rf7 {[%emt 0:00:32]} Rxe4 {[%emt 0:01:03]} 46. Rxe4 {[%emt 0:00:01]} Qc1+ {[%emt 0:00:12]} 47. Kh2 {[%emt 0:00:02]} e5 {[%emt 0:00:23]} 48. Rxe5 $2 {[%emt 0:01:30] [#]} (48. Rf2) 48... Kg8 $1 $19 {[%emt 0:00:09]} 49. Ree7 {[%emt 0:00:11]} Be5+ {[%emt 0:00:11]} 50. g3 {[%emt 0:00:03]} Qb2+ {[%emt 0:00:24]} 51. Kg1 {[%emt 0:00:11]} Bd4+ {[%emt 0:01:37]} 52. Kf1 {[%emt 0:00:33]} Qb1+ {[%emt 0:00:14]} 53. Ke2 {[%emt 0:00:09]} Qc2+ {[%emt 0:00:16]} 54. Kf3 {[%emt 0:00:10]} Qc6+ {[%emt 0:00:31]} 55. Kf4 {[%emt 0:00:17]} b6 {[%emt 0:03:32]} 56. Rb7 {[%emt 0:00:26]} Qd5 {[%emt 0:00:18]} 57. a4 {[%emt 0:00:58]} Qe5+ {[%emt 0:00:44]} 58. Kf3 {[%emt 0:00:29]} Qe3+ {[%emt 0:00:07]} 59. Kg2 {[%emt 0:00:08]} Be5 {[%emt 0:00:22]} 60. Rfe7 {[%emt 0:01:11]} Qe2+ {[%emt 0:00:17]} 61. Kh1 {[%emt 0:00:14]} Qf3+ {[%emt 0:00:03]} 62. Kg1 {[%emt 0:01:17]} Bd4+ {[%emt 0:00:03]} (62... Bxg3 $2 {loses.} 63. Re8+ $18 (63. Rxb6 $2 {gets mated.} Qf2+ 64. Kh1 Qh2#) (63. Rxb6 $2 {leads to mate.} Qf2+ 64. Kh1 Qh2#)) 63. Kh2 {[%emt 0:01:15]} Qf2+ {[%emt 0:00:06]} 0-1

[Event "28th Tamil Nadu IM Norm 2024"]
[Site "Tamil Nadu"]
[Date "2024.09.18"]
[Round "5.3"]
[White "Annageldyev, Orazly"]
[Black "Sriram Adarsh Uppala"]
[Result "0-1"]
[ECO "A09"]
[WhiteElo "2105"]
[BlackElo "2333"]
[Annotator "TA"]
[PlyCount "52"]
[EventDate "2024.09.15"]
[EventCountry "IND"]
[SourceTitle "playchess.com"]
[Source "ChessBase"]
[SourceQuality "1"]
[TimeControl "5400+30"]

{[%evp 15,52,-39,-34,-39,-27,-35,-49,-62,-53,-77,-25,-39,-40,-87,-47,-51,-19,-20,-6,-48,-48,-49,-50,-106,-124,-206,-218,-222,-234,-231,-217,-314,-333,-396,-386,-408,-408,-727,-700]} 1. Nf3 {[%emt 0:00:07]} d5 {[%emt 0:00:37]} 2. c4 {[%emt 0:00:22]} d4 {[%emt 0:00:06]} 3. g3 {[%emt 0:01:09]} Nc6 {[%emt 0:00:15]} 4. Bg2 {[%emt 0:00:14]} e5 {[%emt 0:00:21]} 5. d3 {[%emt 0:00:07]} Bb4+ {[%emt 0:00:12]} 6. Nbd2 {[%emt 0:00:30]} a5 {[%emt 0:00:16]} 7. O-O {[%emt 0:00:10]} Nf6 {[%emt 0:00:22]} 8. a3 {[%emt 0:01:37]} Be7 {[%emt 0:00:39]} 9. Rb1 {[%emt 0:04:14][%cal Ob2b4,Ba1b1,Bb1b3,Bb3b5][%mdl 32]} a4 {[%emt 0:00:16]} 10. b4 {[%emt 0:01:41] [#] Black must now prevent b5.} axb3 {[%emt 0:00:13]} 11. Rxb3 {[%emt 0:01:01] Black is slightly better.} O-O {[%emt 0:00:18]} 12. Rb5 {[%emt 0:03:36]} Bd6 {[%emt 0:05:09]} (12... Nd7 $17) 13. Qc2 {[%emt 0:12:36]} Re8 {[%emt 0:07:15]} 14. a4 {[%emt 0:06:04]} (14. c5 $15 {is superior.} Bf8 15. Nb3) 14... Ra7 {[%emt 0:04:50]} 15. Ng5 {[%emt 0:09:51]} Bd7 {[%emt 0:15:42]} 16. c5 {[%emt 0:04:59]} Bf8 {[%emt 0:00:14]} 17. Nc4 {[%emt 0:06:26] Wards off Na5} h6 {[%emt 0:07:43]} 18. Ne4 {[%emt 0:02:28]} Nd5 {[%emt 0:00:26]} 19. Bd2 {[%emt 0:02:44]} (19. Qb2 $15) 19... Be6 $17 {[%emt 0:00:57]} 20. f4 {[%emt 0:05:02]} (20. f3 $17) 20... f5 $19 {[%emt 0:03:03]} 21. Nf2 {[%emt 0:04:34]} exf4 {[%emt 0:00:11]} 22. gxf4 {[%emt 0:01:40] [#]} Bf7 $1 {[%emt 0:00:07] ...Ne3 would now be deadly.} 23. Bf3 {[%emt 0:11:11]} (23. Nh1 $142) 23... Ne3 {[%emt 0:00:20]} 24. Bxe3 {[%emt 0:01:26]} dxe3 {[%emt 0:00:03]} 25. Nd1 {[%emt 0:03:23]} Nd4 $1 {[%emt 0:00:08][%csl LRb5,LRc2]} 26. Qb2 {[%emt 0:00:16]} (26. Qc3 $142) 26... Nxf3+ {[%emt 0:00:12] Weighted Error Value: White=0.55/Black=0.09 (flawless) .  Mistake:       	White=5     	Black=1      Inaccurate:     	White=1     	Black=2      OK:         	White=4     	Black=6      Best:        	---       	Black=5} 0-1

[Event "28th Tamil Nadu IM Norm 2024"]
[Site "Tamil Nadu"]
[Date "2024.09.18"]
[Round "5.4"]
[White "Vahidov, Tair"]
[Black "Gochelashvili, David"]
[Result "1/2-1/2"]
[ECO "E62"]
[WhiteElo "2345"]
[BlackElo "2280"]
[Annotator "TA"]
[PlyCount "49"]
[EventDate "2024.09.15"]
[EventCountry "IND"]
[SourceTitle "playchess.com"]
[Source "ChessBase"]
[SourceQuality "1"]
[TimeControl "5400+30"]

{[%evp 13,49,3,24,-28,-17,-3,0,0,0,0,0,0,0,0,19,5,0,0,7,-3,0,0,0,0,25,32,31,14,27,0,35,0,18,0,31,0,32,0]} 1. d4 {[%emt 0:00:12]} Nf6 {[%emt 0:00:14]} 2. c4 {[%emt 0:00:17]} g6 {[%emt 0:00:05]} 3. Nc3 {[%emt 0:00:23]} Bg7 {[%emt 0:00:06]} 4. Nf3 {[%emt 0:00:21]} O-O {[%emt 0:00:13]} 5. g3 {[%emt 0:00:20]} d6 {[%emt 0:00:10]} 6. Bg2 {[%emt 0:00:11]} Nc6 {[%emt 0:00:09]} 7. h3 {[%emt 0:00:07]} e5 {[%emt 0:02:02]} 8. e3 {[%emt 0:01:49]} (8. d5 $142 Ne7 9. e4) 8... exd4 $11 {[%emt 0:00:13]} 9. Nxd4 {[%emt 0:00:10]} Nxd4 {[%emt 0:00:18]} 10. exd4 {[%emt 0:00:10] The position is equal.} Re8+ {[%emt 0:00:10]} 11. Be3 {[%emt 0:00:21]} Bf5 {[%emt 0:02:30][%cal Od6d5]} 12. O-O {[%emt 0:02:14]} Qd7 {[%emt 0:00:33]} 13. g4 {[%emt 0:00:16]} Be4 {[%emt 0:00:20]} 14. Nxe4 {[%emt 0:00:23]} Nxe4 {[%emt 0:00:07]} 15. Qd3 {[%emt 0:00:08]} f5 {[%emt 0:01:44]} 16. Rfe1 {[%emt 0:00:46]} Re7 {[%emt 0:00:51]} 17. Re2 {[%emt 0:01:00]} Rae8 {[%emt 0:00:53]} 18. Rae1 {[%emt 0:00:38]} c6 {[%emt 0:02:35]} 19. d5 {[%emt 0:02:17]} Nc5 {[%emt 0:01:39]} ({Of course not} 19... fxg4 20. Bxa7 Ng5 21. Rxe7 Rxe7 22. Rxe7 Qxe7 23. dxc6 bxc6 24. Qe3) 20. Qd2 {[%emt 0:00:44]} Ne4 {[%emt 0:00:59]} 21. Qd3 {[%emt 0:01:18]} Nc5 $1 {[%emt 0:00:36]} 22. Qd2 {[%emt 0:00:41]} Ne4 {[%emt 0:00:16]} 23. Qd3 {[%emt 0:00:09]} Nc5 $1 {[%emt 0:00:12]} ({But not} 23... fxg4 24. Bxa7 Ng5 25. dxc6 bxc6 26. Rxe7 Rxe7 27. Rxe7 Qxe7 28. Qe3 $14) 24. Qd2 {[%emt 0:00:09]} Ne4 {[%emt 0:00:08]} 25. Qd3 {[%emt 0:00:08] A rather calm draw.   Weighted Error Value: White=0.15 (very precise) /Black=0.03 (flawless) .  Inaccurate:     	White=1     	---        OK:         	White=4     	Black=5      Best:        	White=1     	Black=1      Strong:       	---       	Black=2} 1/2-1/2

[Event "28th Tamil Nadu IM Norm 2024"]
[Site "Tamil Nadu"]
[Date "2024.09.18"]
[Round "5.5"]
[White "Manik, Mikulas"]
[Black "Dhruva Thota"]
[Result "1/2-1/2"]
[ECO "B90"]
[WhiteElo "2316"]
[BlackElo "2342"]
[Annotator "TA"]
[PlyCount "60"]
[EventDate "2024.09.15"]
[EventCountry "IND"]
[SourceTitle "playchess.com"]
[Source "ChessBase"]
[SourceQuality "1"]
[TimeControl "5400+30"]

{[%evp 19,60,7,9,0,0,0,0,0,47,45,58,22,57,0,28,0,0,0,0,0,0,-8,-17,-5,-7,-14,-12,-28,0,0,0,0,0,-2,-7,-14,3,6,2,0,0,0,0]} 1. e4 {[%emt 0:00:03]} c5 {[%emt 0:00:20]} 2. Nf3 {[%emt 0:00:03]} d6 {[%emt 0:00:14]} 3. d4 {[%emt 0:00:04]} cxd4 {[%emt 0:00:08]} 4. Nxd4 {[%emt 0:00:08]} Nf6 {[%emt 0:00:12]} 5. Nc3 {[%emt 0:00:02]} a6 {[%emt 0:00:18]} 6. Be3 {[%emt 0:00:04]} e5 {[%emt 0:01:05]} 7. Nf3 {[%emt 0:02:49]} Be7 {[%emt 0:00:41]} 8. Bc4 {[%emt 0:01:32]} Be6 {[%emt 0:00:46]} 9. Bb3 {[%emt 0:05:30]} O-O {[%emt 0:02:10]} 10. O-O {[%emt 0:00:15]} Qc7 {[%emt 0:00:17]} 11. a4 {[%emt 0:04:42]} Nc6 {[%emt 0:13:03]} 12. Bg5 {[%emt 0:03:01]} Nb4 {[%emt 0:09:57]} 13. a5 {[%emt 0:10:33]} b5 {[%emt 0:06:34] Wards off Ra4} (13... Nc6 $11) 14. axb6 $14 {[%emt 0:02:40]} Qxb6 {[%emt 0:00:12]} 15. Nd2 {[%emt 0:04:25]} Rfc8 {[%emt 0:07:55]} 16. Qe2 {[%emt 0:09:04]} ({White should play} 16. Na4 $14 Qb5 17. Nc3) 16... Qc6 {[%emt 0:21:17]} (16... Nxc2 $5 17. Bxc2 Qxb2 18. Bxf6 Bxf6 $11) 17. Ra4 {[%emt 0:06:38]} Rab8 {[%emt 0:05:47]} 18. Rfa1 {[%emt 0:03:08]} h6 {[%emt 0:05:34]} 19. Bxf6 {[%emt 0:04:00]} Bxf6 {[%emt 0:00:07]} 20. Nf1 {[%emt 0:02:37]} Bxb3 {[%emt 0:07:34]} 21. cxb3 {[%emt 0:00:07]} d5 {[%emt 0:01:52]} 22. exd5 {[%emt 0:09:18]} Nxd5 {[%emt 0:00:37]} 23. Ne4 {[%emt 0:00:29]} (23. Rc4 {feels hotter.} Nf4 24. Qg4 Qb7 25. Ne3) 23... Rxb3 {[%emt 0:04:54]} 24. Rxa6 {[%emt 0:00:13] The position is equal.} Rb6 {[%emt 0:00:43]} 25. Rxb6 {[%emt 0:04:48]} Qxb6 {[%emt 0:01:00]} 26. Qg4 {[%emt 0:01:07]} Rd8 {[%emt 0:03:10]} 27. Nfg3 {[%emt 0:01:31]} Qe6 {[%emt 0:02:16]} 28. Qxe6 {[%emt 0:00:05]} fxe6 {[%emt 0:00:02]} 29. Rd1 {[%emt 0:00:23]} Rb8 {[%emt 0:00:23]} 30. Rd2 {[%emt 0:00:04]} Kf7 {[%emt 0:00:11] Weighted Error Value: White=0.10 (very precise) /Black=0.11 (very precise) .  Mistake:       	White=1     	Black=1      Inaccurate:     	White=2     	Black=3      OK:         	White=6     	Black=6      Best:        	White=1     	---} 1/2-1/2

[Event "28th Tamil Nadu IM Norm 2024"]
[Site "Tamil Nadu"]
[Date "2024.09.18"]
[Round "6.1"]
[White "Podolchenko, Evgeniy"]
[Black "Dhruva Thota"]
[Result "1/2-1/2"]
[WhiteElo "2338"]
[BlackElo "2342"]
[PlyCount "56"]
[EventDate "2024.09.15"]
[EventCountry "IND"]
[TimeControl "5400+30"]

1. Nf3 {[%emt 0:00:03]} Nf6 {[%emt 0:01:18]} 2. c4 {[%emt 0:00:06]} g6 {[%emt 0:00:30]} 3. b3 {[%emt 0:00:05]} Bg7 {[%emt 0:00:19]} 4. Bb2 {[%emt 0:00:02]} O-O {[%emt 0:00:37]} 5. e3 {[%emt 0:00:02]} c5 {[%emt 0:05:14]} 6. Be2 {[%emt 0:00:11]} Nc6 {[%emt 0:01:23]} 7. O-O {[%emt 0:00:17]} d5 {[%emt 0:02:21]} 8. cxd5 {[%emt 0:00:06]} Qxd5 {[%emt 0:07:14]} 9. d3 {[%emt 0:01:19]} b6 {[%emt 0:01:46]} 10. a3 {[%emt 0:03:44]} Bb7 {[%emt 0:04:48]} 11. Nbd2 {[%emt 0:00:36]} Rfd8 {[%emt 0:03:02]} 12. Qc2 {[%emt 0:00:08]} Rac8 {[%emt 0:05:38]} 13. Rac1 {[%emt 0:00:40]} e5 {[%emt 0:01:01]} 14. Qb1 {[%emt 0:01:58]} Ne8 {[%emt 0:05:37]} 15. Qa1 {[%emt 0:00:33]} Nd6 {[%emt 0:03:47]} 16. Rfe1 {[%emt 0:02:06]} Re8 {[%emt 0:05:39]} 17. Bf1 {[%emt 0:00:47]} Ba6 {[%emt 0:03:18]} 18. Red1 {[%emt 0:11:38]} Rcd8 {[%emt 0:04:41]} 19. Ng5 {[%emt 0:08:34]} Nb7 {[%emt 0:05:35]} 20. Nc4 {[%emt 0:12:00]} h6 {[%emt 0:04:08]} 21. Ne4 {[%emt 0:03:48]} Nba5 {[%emt 0:04:11]} 22. Ned2 {[%emt 0:06:34]} Nxc4 {[%emt 0:03:43]} 23. Nxc4 {[%emt 0:02:28]} Qe6 {[%emt 0:07:22]} 24. Bc3 {[%emt 0:05:34]} Qe7 {[%emt 0:05:43]} 25. Kh1 {[%emt 0:06:35]} Kh8 {[%emt 0:00:02]} 26. Kg1 {[%emt 0:00:05]} Kg8 {[%emt 0:00:05]} 27. Kh1 {[%emt 0:00:05]} Kh8 {[%emt 0:00:04]} 28. Kg1 {[%emt 0:00:05]} Kg8 {[%emt 0:00:04]} 1/2-1/2

[Event "28th Tamil Nadu IM Norm 2024"]
[Site "Tamil Nadu"]
[Date "2024.09.18"]
[Round "6.2"]
[White "Gochelashvili, David"]
[Black "Manik, Mikulas"]
[Result "0-1"]
[WhiteElo "2280"]
[BlackElo "2316"]
[PlyCount "64"]
[EventDate "2024.09.15"]
[EventCountry "IND"]
[TimeControl "5400+30"]

1. e4 {[%emt 0:00:56]} c5 {[%emt 0:00:02]} 2. Nf3 {[%emt 0:00:08]} Nc6 {[%emt 0:00:04]} 3. Bb5 {[%emt 0:00:14]} g6 {[%emt 0:00:29]} 4. Bxc6 {[%emt 0:00:20]} dxc6 {[%emt 0:00:06]} 5. d3 {[%emt 0:00:07]} Bg7 {[%emt 0:00:07]} 6. h3 {[%emt 0:01:03]} Nf6 {[%emt 0:01:53]} 7. Nbd2 {[%emt 0:16:18]} Nd7 {[%emt 0:07:26]} 8. a4 {[%emt 0:01:22]} O-O {[%emt 0:05:11]} 9. a5 {[%emt 0:05:34]} e5 {[%emt 0:02:28]} 10. Nc4 {[%emt 0:00:54]} Qe7 {[%emt 0:03:35]} 11. Be3 {[%emt 0:03:50]} Rd8 {[%emt 0:00:40]} 12. Qd2 {[%emt 0:16:49]} Nf8 {[%emt 0:03:43]} 13. O-O {[%emt 0:00:44]} f6 {[%emt 0:01:53]} 14. Rfb1 {[%emt 0:02:41]} Ne6 {[%emt 0:05:08]} 15. b4 {[%emt 0:01:48]} cxb4 {[%emt 0:11:40]} 16. Rxb4 {[%emt 0:01:24]} Nc5 {[%emt 0:01:14]} 17. Qc3 {[%emt 0:01:15]} Bf8 {[%emt 0:03:40]} 18. Ncxe5 {[%emt 0:15:16]} Ne6 {[%emt 0:03:44]} 19. Rab1 {[%emt 0:07:42]} fxe5 {[%emt 0:00:59]} 20. Nxe5 {[%emt 0:02:13]} c5 {[%emt 0:05:59]} 21. Rb5 {[%emt 0:06:34]} Nd4 {[%emt 0:00:54]} 22. Bxd4 {[%emt 0:00:04]} Rxd4 {[%emt 0:00:08]} 23. a6 {[%emt 0:10:45]} Qxe5 {[%emt 0:00:50]} 24. axb7 {[%emt 0:00:02]} Bxb7 {[%emt 0:00:07]} 25. Rxb7 {[%emt 0:00:03]} Rxe4 {[%emt 0:02:08]} 26. Qa5 {[%emt 0:00:13]} Re2 {[%emt 0:01:12]} 27. Qa2+ {[%emt 0:05:05]} Qe6 {[%emt 0:00:25]} 28. Qa4 {[%emt 0:00:14]} Bd6 {[%emt 0:07:34]} 29. Qa1 {[%emt 0:00:30]} Qe5 {[%emt 0:01:59]} 30. Rd7 {[%emt 0:00:15]} Qxa1 {[%emt 0:01:00]} 31. Rxa1 {[%emt 0:00:01]} Be5 {[%emt 0:00:18]} 32. c3 {[%emt 0:01:12]} Bxc3 {[%emt 0:00:14]} 0-1

[Event "28th Tamil Nadu IM Norm 2024"]
[Site "Tamil Nadu"]
[Date "2024.09.18"]
[Round "6.3"]
[White "Sriram Adarsh Uppala"]
[Black "Vahidov, Tair"]
[Result "1-0"]
[WhiteElo "2333"]
[BlackElo "2345"]
[PlyCount "95"]
[EventDate "2024.09.15"]
[EventCountry "IND"]
[TimeControl "5400+30"]

1. b3 {[%emt 0:00:11]} e5 {[%emt 0:00:52]} 2. Bb2 {[%emt 0:00:06]} Nc6 {[%emt 0:00:22]} 3. e3 {[%emt 0:00:08]} g6 {[%emt 0:01:34]} 4. Nf3 {[%emt 0:00:10]} Bg7 {[%emt 0:00:24]} 5. c4 {[%emt 0:00:03]} Nge7 {[%emt 0:00:43]} 6. b4 {[%emt 0:00:05]} d6 {[%emt 0:08:07]} 7. b5 {[%emt 0:00:38]} Nb8 {[%emt 0:00:07]} 8. d4 {[%emt 0:02:16]} Nd7 {[%emt 0:01:27]} 9. Be2 {[%emt 0:01:47]} O-O {[%emt 0:00:47]} 10. Nc3 {[%emt 0:03:42]} exd4 {[%emt 0:13:22]} 11. exd4 {[%emt 0:04:07]} Re8 {[%emt 0:02:38]} 12. O-O {[%emt 0:01:20]} Nf5 {[%emt 0:01:55]} 13. a4 {[%emt 0:06:26]} Nf8 {[%emt 0:06:07]} 14. Re1 {[%emt 0:12:30]} Ne6 {[%emt 0:02:54]} 15. Nd5 {[%emt 0:13:14]} c6 {[%emt 0:10:54]} 16. Ne3 {[%emt 0:08:57]} Nf4 {[%emt 0:26:27]} 17. Bf1 {[%emt 0:03:34]} d5 {[%emt 0:00:11]} 18. Qb3 {[%emt 0:06:32]} Be6 {[%emt 0:02:06]} 19. c5 {[%emt 0:00:37]} Nh4 {[%emt 0:01:13]} 20. Nc2 {[%emt 0:04:43]} Nxf3+ {[%emt 0:02:00]} 21. Qxf3 {[%emt 0:00:07]} Nh5 {[%emt 0:00:12]} 22. Ne3 {[%emt 0:05:47]} Qd7 {[%emt 0:01:20]} 23. h3 {[%emt 0:00:54]} Nf6 {[%emt 0:00:23]} 24. Bd3 {[%emt 0:02:57]} Rad8 {[%emt 0:01:55]} 25. Rac1 {[%emt 0:03:34]} Ne4 {[%emt 0:01:15]} 26. Qf4 {[%emt 0:01:13]} g5 {[%emt 0:01:12]} 27. Qf3 {[%emt 0:00:25]} f5 {[%emt 0:00:22]} 28. Qd1 {[%emt 0:02:23]} h6 {[%emt 0:01:05]} 29. Nf1 {[%emt 0:00:56]} f4 {[%emt 0:04:25]} 30. f3 {[%emt 0:01:50]} Nf6 {[%emt 0:03:54]} 31. Qc2 {[%emt 0:00:30]} Bf7 {[%emt 0:00:08]} 32. b6 {[%emt 0:03:09]} axb6 {[%emt 0:00:34]} 33. cxb6 {[%emt 0:00:08]} Ra8 {[%emt 0:00:50]} 34. Bc3 {[%emt 0:00:52]} Rxe1 {[%emt 0:00:30]} 35. Rxe1 {[%emt 0:00:05]} Ne8 {[%emt 0:00:15]} 36. a5 {[%emt 0:00:29]} Nd6 {[%emt 0:00:05]} 37. Nd2 {[%emt 0:00:51]} Nc4 {[%emt 0:01:14]} 38. Nb3 {[%emt 0:02:36]} Ne3 {[%emt 0:00:07]} 39. Qb2 {[%emt 0:00:30]} Bf8 {[%emt 0:00:32]} 40. Nc5 {[%emt 0:03:34]} Bxc5 {[%emt 0:00:07]} 41. dxc5 {[%emt 0:00:02]} d4 {[%emt 0:00:09]} 42. Bxd4 {[%emt 0:01:46]} Rxa5 {[%emt 0:00:05]} 43. Qc3 {[%emt 0:00:48]} Ra4 {[%emt 0:02:41]} 44. Bxe3 {[%emt 0:00:15]} fxe3 {[%emt 0:00:07]} 45. Rxe3 {[%emt 0:00:08]} Qd5 {[%emt 0:03:53]} 46. Re4 {[%emt 0:01:23]} Ra2 {[%emt 0:01:00]} 47. Re8+ {[%emt 0:00:09]} Bxe8 {[%emt 0:00:23]} 48. Bc4 {[%emt 0:00:01]} 1-0

[Event "28th Tamil Nadu IM Norm 2024"]
[Site "Tamil Nadu"]
[Date "2024.09.18"]
[Round "6.4"]
[White "Aakash G"]
[Black "Annageldyev, Orazly"]
[Result "1-0"]
[WhiteElo "2279"]
[BlackElo "2105"]
[PlyCount "75"]
[EventDate "2024.09.15"]
[EventCountry "IND"]
[TimeControl "5400+30"]

1. d4 {[%emt 0:00:04]} d5 {[%emt 0:00:11]} 2. c4 {[%emt 0:00:06]} e6 {[%emt 0:00:06]} 3. cxd5 {[%emt 0:00:07]} exd5 {[%emt 0:00:06]} 4. Nc3 {[%emt 0:00:07]} Nf6 {[%emt 0:00:15]} 5. Bg5 {[%emt 0:00:04]} Be7 {[%emt 0:00:38]} 6. e3 {[%emt 0:00:09]} h6 {[%emt 0:00:16]} 7. Bh4 {[%emt 0:00:22]} O-O {[%emt 0:00:11]} 8. Bd3 {[%emt 0:00:03]} b6 {[%emt 0:00:47]} 9. Nge2 {[%emt 0:00:16]} Bb7 {[%emt 0:00:55]} 10. f3 {[%emt 0:00:24]} c5 {[%emt 0:00:38]} 11. O-O {[%emt 0:00:10]} Re8 {[%emt 0:01:00]} 12. Kh1 {[%emt 0:00:19]} Nc6 {[%emt 0:02:26]} 13. Rc1 {[%emt 0:03:42]} Nb4 {[%emt 0:08:50]} 14. Bb5 {[%emt 0:00:35]} Rf8 {[%emt 0:09:19]} 15. a3 {[%emt 0:00:20]} Na6 {[%emt 0:04:24]} 16. Bd3 {[%emt 0:04:48]} Nc7 {[%emt 0:05:01]} 17. Bb1 {[%emt 0:00:57]} Re8 {[%emt 0:05:04]} 18. Qd3 {[%emt 0:03:37]} Ba6 {[%emt 0:01:52]} 19. Qc2 {[%emt 0:00:06]} Ne6 {[%emt 0:03:24]} 20. Rfd1 {[%emt 0:05:08]} Bxe2 {[%emt 0:04:07]} 21. Nxe2 {[%emt 0:00:39]} cxd4 {[%emt 0:04:12]} 22. exd4 {[%emt 0:00:18]} Rc8 {[%emt 0:07:28]} 23. Nc3 {[%emt 0:00:04]} g6 {[%emt 0:03:00]} 24. Qd2 {[%emt 0:00:51]} Kg7 {[%emt 0:03:27]} 25. Ba2 {[%emt 0:01:51]} g5 {[%emt 0:02:27]} 26. Bg3 {[%emt 0:00:36]} Nh5 {[%emt 0:03:09]} 27. Nxd5 {[%emt 0:03:08]} Nxg3+ {[%emt 0:02:01]} 28. hxg3 {[%emt 0:00:06]} Rxc1 {[%emt 0:00:28]} 29. Rxc1 {[%emt 0:00:23]} Bd6 {[%emt 0:00:54]} 30. Ne3 {[%emt 0:00:36]} Kf8 {[%emt 0:03:12]} 31. Nf5 {[%emt 0:05:44]} Bc5 {[%emt 0:01:12]} 32. Bxe6 {[%emt 0:07:02]} Rxe6 {[%emt 0:07:49]} 33. Qc3 {[%emt 0:00:19]} Bd6 {[%emt 0:05:25]} 34. d5 {[%emt 0:00:46]} Re5 {[%emt 0:00:24]} 35. Qc8 {[%emt 0:00:14]} Re8 {[%emt 0:01:13]} 36. Qc6 {[%emt 0:00:25]} Be5 {[%emt 0:02:19]} 37. Qxh6+ {[%emt 0:00:06]} Kg8 {[%emt 0:00:12]} 38. d6 {[%emt 0:00:05]} 1-0